bitfinex-derivatives/quotes_ETHF0:USTF0_20251107
["timestamp","ask_amount","ask_price","bid_price","bid_amount"]
[1762482921291,0.49133835,3323.0,3322.8,0.00369091]
[1762482921486,0.00356835,3323.0,3322.8,0.14239091]
[1762482921693,0.49133835,3323.0,3322.8,0.14239091]
[1762482921886,0.49133835,3323.0,3322.8,0.00369091]
[1762482922390,0.2445,3322.9,3322.8,0.00369091]
[1762482924391,0.2445,3322.3,3322.2,3.2078]
[1762482924591,0.0559,3322.8,3322.2,3.2078]
[1762482924791,0.48786,3322.4,3322.2,3.2078]
[1762482924988,3.2078,3322.7,3322.2,3.2078]
[1762482925194,0.73237,3322.3,3322.2,3.21151521]
[1762482925593,0.73237,3322.3,3322.2,0.00371521]
[1762482930697,0.73237,3322.3,3322.1,0.00451658]
[1762482930698,0.7325,3321.4,3321.3,3.2078]
[1762482930895,0.2445,3321.4,3321.3,3.2078]
[1762482931194,3.2078,3322.6,3321.6,0.62667]
[1762482931399,0.48796,3321.7,3321.6,0.3844]
[1762482931598,3.3557,3322.2,3321.6,0.00226796]
[1762482931798,0.48796,3321.7,3321.6,0.00226796]
[1762482932301,3.3557,3322.2,3321.6,0.14096796]
[1762482932302,3.2078,3322.2,3321.6,0.14096796]
[1762482932594,0.73246,3321.7,3321.6,0.00226796]
[1762482933793,0.73246,3321.7,3321.3,0.00451658]
[1762482933794,0.7325,3321.4,3321.3,0.00451658]
[1762482933994,3.9403,3321.4,3321.3,0.00451658]
[1762482934796,3.9403,3321.4,3320.5,3.2078]
[1762482934797,0.48812,3320.6,3320.5,3.2078]
[1762482935003,0.72722,3320.6,3320.5,3.2078]
[1762482935199,3.2078,3321.0,3320.5,3.2078]
[1762482935395,0.48808,3320.9,3320.7,0.48811]
[1762482935791,0.49174149,3320.9,3320.7,0.49140493]
[1762482936001,0.49174149,3320.9,3320.7,0.00329493]
[1762482936196,0.2391,3320.8,3320.7,0.00329493]
[1762482937703,0.49174149,3320.9,3320.7,0.00329493]
[1762482938400,0.2391,3320.8,3320.7,0.00329493]
[1762482939908,0.72719,3320.8,3320.7,0.00329493]
[1762482940902,0.2391,3320.8,3320.7,0.00329493]
[1762482941106,0.48809,3320.8,3320.7,0.00329493]
[1762482941301,0.00366149,3320.9,3320.7,0.00329493]
[1762482941302,0.00366149,3320.9,3320.7,0.72900493]
[1762482941510,0.48809,3320.8,3320.7,0.72900493]
[1762482942004,0.49174149,3320.9,3320.8,0.72569]
[1762482942401,0.00366149,3320.9,3320.8,8.72569]
[1762482943904,0.00366149,3320.9,3320.8,0.72569]
[1762482944199,0.00366149,3320.9,3320.7,0.00329493]
[1762482944200,0.48809,3320.8,3320.7,0.00329493]
[1762482944399,0.49174149,3320.9,3320.8,0.2376]
[1762482945311,0.00366149,3320.9,3320.8,8.2376]
[1762482945511,0.00451658,3321.1,3321.0,0.3904]
[1762482945701,0.00451658,3321.1,3321.0,3.5982]
[1762482946006,3.3557,3322.2,3321.6,0.64077]
[1762482946309,0.48796,3321.8,3321.6,3.9558]
[1762482946513,0.49162289,3321.8,3321.7,0.2376]
[1762482946812,0.00366289,3321.8,3321.7,0.2376]
[1762482948110,0.00366289,3321.8,3321.7,8.2376]
[1762482948308,3.2078,3323.0,3322.6,0.2376]
[1762482948507,0.48781,3322.8,3322.6,0.2376]
[1762482948704,0.48787,3322.3,3322.2,3.5982]
[1762482949105,0.48787,3322.3,3322.2,3.2078]
[1762482949315,0.48793,3321.9,3321.7,3.803]
[1762482949518,0.2494,3321.8,3321.7,3.803]
[1762482949925,0.1481,3322.2,3321.7,3.803]
[1762482950126,0.48793,3321.9,3321.7,3.803]
[1762482950627,0.48793,3321.9,3321.8,3.2078]
[1762482950928,0.48793,3321.9,3321.7,3.803]
[1762482952028,3.21075463,3322.3,3321.7,3.803]
[1762482952029,3.69862463,3322.3,3321.7,3.803]
[1762482952230,0.48789,3322.2,3322.1,0.7255]
[1762482952427,3.21075463,3322.3,3321.8,3.2078]
[1762482952730,0.48793,3321.9,3321.7,3.803]
[1762482953133,0.48793,3321.9,3321.7,4.29095]
[1762482953730,0.48793,3321.9,3321.8,0.2376]
[1762482953925,0.48793,3321.9,3321.7,3.803]
[1762482954834,0.00295463,3322.3,3321.7,3.803]
[1762482955825,0.48794,3321.9,3321.7,3.803]
[1762482956738,0.48794,3321.8,3321.7,3.803]
[1762482957039,0.00295463,3322.3,3321.8,0.48794]
[1762482957438,0.48794,3321.8,3321.7,4.0406]
[1762482958739,0.48789,3322.2,3322.1,0.2376]
[1762482958936,0.48795,3321.8,3321.7,3.803]
[1762482960038,0.48798,3321.6,3321.5,3.80751658]
[1762482960732,0.48798,3321.6,3321.5,0.00451658]
[1762482961334,0.48798,3321.6,3321.5,0.24211658]
[1762482962637,0.48798,3321.6,3321.5,0.00451658]
[1762482962833,3.2078,3322.0,3321.9,0.2376]
[1762482963036,0.00295463,3322.3,3322.2,0.72549]
[1762482963631,0.49082463,3322.3,3322.2,0.2376]
[1762482964237,0.4879,3322.1,3322.0,0.1528]
[1762482964435,0.88008,3321.6,3321.5,0.00451658]
[1762482964642,4.08788,3321.6,3321.5,0.00451658]
[1762482964830,4.08788,3321.6,3321.5,1.658e-05]
[1762482970338,3.69578,3321.6,3321.5,1.658e-05]
[1762482970536,3.94218,3321.6,3321.5,1.658e-05]
[1762482972235,0.73449,3320.8,3320.7,1.51e-06]
[1762482972443,3.94229,3320.8,3320.7,1.51e-06]
[1762482972640,4.67098282,3320.8,3320.7,1.51e-06]
[1762482973344,3.94229,3320.8,3320.7,1.51e-06]
[1762482974835,3.2078,3320.8,3320.7,0.23220151]
[1762482975041,0.48798,3321.6,3321.0,0.1447]
[1762482975342,0.1382,3322.5,3321.0,0.1447]
[1762482975343,0.49082463,3322.3,3322.2,0.1447]
[1762482975744,0.49082463,3322.3,3322.2,0.3769]
[1762482976145,0.00295463,3322.3,3322.2,0.3769]
[1762482976346,0.00295463,3322.3,3322.2,8.3769]
[1762482977040,3.2078,3323.7,3322.8,0.1447]
[1762482977240,3.2078,3323.7,3322.8,3.3525]
[1762482977646,0.48777,3323.1,3323.0,0.2322]
[1762482978048,0.49019406,3323.1,3323.0,0.2322]
[1762482978342,0.48779,3322.9,3322.7,0.00451658]
[1762482978547,0.48779,3322.9,3322.8,3.5847]
[1762482978748,0.48778,3323.0,3322.9,0.2322]
[1762482979849,0.00242406,3323.1,3323.0,0.2322]
[1762482982955,0.48777,3323.0,3322.8,3.3525]
[1762482983455,0.00242406,3323.1,3323.0,0.2322]
[1762482985349,3.2078,3324.6,3324.1,0.2322]
[1762482985552,0.4876,3324.2,3324.1,0.2322]
[1762482986347,0.4876,3324.2,3324.1,0.23602379]
[1762482986348,0.49050099,3324.2,3324.1,0.23602379]
[1762482986549,0.49050099,3324.2,3324.1,0.00382379]
[1762482986746,3.94470099,3324.2,3324.1,0.00382379]
[1762482987154,0.49050099,3324.2,3324.1,0.23602379]
[1762482987656,0.49050099,3324.2,3324.1,0.00382379]
[1762482987857,0.00290099,3324.2,3324.1,0.23602379]
[1762482988254,0.00451658,3324.5,3324.4,0.2322]
[1762482988455,0.48749,3324.9,3324.8,0.2322]
[1762482988753,0.48748,3325.0,3324.8,0.2322]
[1762482989155,0.00331529,3325.0,3324.8,0.2322]
[1762482989355,0.49079529,3325.0,3324.8,0.2322]
[1762482989762,0.49079529,3325.0,3324.9,0.2322]
[1762482989763,0.00331529,3325.0,3324.9,0.2322]
[1762482990159,0.48737,3325.8,3325.4,0.2322]
[1762482990459,0.48738,3325.7,3325.6,0.2322]
[1762482991259,0.48738,3325.7,3324.9,9.233]
[1762482991260,0.00263969,3325.7,3324.5,3.2078]
[1762482991459,0.48752,3324.7,3324.6,0.38141658]
[1762482991665,0.4875,3324.9,3324.6,0.86894658]
[1762482991966,0.4875,3324.9,3324.8,0.2322]
[1762482992365,0.48743,3325.4,3325.3,0.2322]
[1762482992662,0.4874,3325.6,3325.5,0.2322]
[1762482993260,0.00263969,3325.7,3325.6,0.2322]
[1762482995264,0.4872,3326.9,3326.8,0.2483]
[1762482995467,3.2078,3327.2,3326.8,0.2483]
[1762482995665,0.48719,3327.0,3326.8,0.2483]
[1762482995861,0.48719,3327.0,3326.9,0.2483]
[1762482996258,0.00301219,3327.0,3326.9,0.25131649]
[1762482996463,0.25661219,3327.0,3326.9,0.00301649]
[1762482996662,0.00301219,3327.0,3326.9,0.00301649]
[1762482997272,0.32041219,3327.0,3326.9,0.00301649]
[1762482997470,0.48732,3326.1,3326.0,3.2078]
[1762482997762,3.4614,3326.1,3325.3,3.2078]
[1762482997971,3.2078,3325.7,3324.9,3.2078]
[1762482998469,0.00448655,3325.6,3325.0,0.00450964]
[1762482998966,0.48746,3325.2,3325.0,0.00450964]
[1762482999870,3.69526,3325.2,3325.0,0.00450964]
[1762483000062,0.2315,3325.1,3325.0,0.00450964]
[1762483000664,0.71915,3323.8,3323.7,3.2078]
[1762483000869,0.0638,3324.6,3323.3,3.2078]
[1762483000870,3.2078,3324.0,3323.3,3.2078]
[1762483001173,0.48771,3323.5,3323.3,3.2078]
[1762483001373,0.2315,3323.4,3323.3,3.2078]
[1762483001571,0.23461399,3323.4,3323.3,3.21031402]
[1762483001867,3.44241399,3323.4,3323.3,0.00251402]
[1762483002475,3.21091399,3323.4,3322.1,3.2078]
[1762483002675,0.48788,3322.3,3322.1,3.2078]
[1762483003179,3.2078,3322.4,3321.7,3.2078]
[1762483003477,3.2078,3322.4,3321.7,3.21606967]
[1762483003865,0.00311399,3323.4,3322.2,0.145]
[1762483003866,3.2078,3323.2,3322.2,0.145]
[1762483004273,3.2078,3322.8,3322.2,0.145]
[1762483004474,0.48789,3322.2,3321.7,3.21606967]
[1762483004672,3.2078,3322.4,3321.7,3.21606967]
[1762483004866,0.48784,3322.6,3321.9,0.48792]
[1762483005173,3.2078,3323.0,3322.2,0.145]
[1762483005875,0.48784,3322.6,3322.5,0.2522]
[1762483006072,3.2078,3323.0,3322.5,0.2522]
[1762483006268,0.48778,3323.0,3322.6,3.2078]
[1762483006472,0.48779,3322.9,3322.6,3.2078]
[1762483006675,3.2078,3323.1,3322.2,3.3528]
[1762483006872,0.48784,3322.6,3322.2,3.3528]
[1762483007172,3.2078,3323.1,3322.2,3.3528]
[1762483007572,0.48779,3322.9,3322.7,3.2078]
[1762483007780,0.48776,3323.1,3322.7,3.2078]
[1762483008080,3.2078,3323.2,3322.3,3.2078]
[1762483008273,0.48785,3322.5,3322.3,3.2078]
[1762483008474,3.2078,3323.0,3322.4,0.2522]
[1762483009572,3.2078,3323.0,3322.3,3.2078]
[1762483009774,0.00311399,3323.4,3322.9,0.3972]
[1762483009980,0.00311399,3323.4,3323.1,3.2078]
[1762483010376,0.00311399,3323.4,3323.2,0.2522]
[1762483010377,0.48773,3323.3,3323.2,0.2522]
[1762483010688,0.48773,3323.3,3323.1,3.2078]
[1762483011382,0.00311399,3323.4,3323.3,0.2522]
[1762483012582,0.48773,3323.3,3323.1,3.2078]
[1762483012985,0.48779,3322.9,3322.7,3.2078]
[1762483013184,0.48779,3322.9,3322.8,0.3972]
[1762483013380,0.48779,3322.9,3322.3,3.2078]
[1762483013381,0.48785,3322.5,3322.3,3.2078]
[1762483013580,0.48791,3322.1,3321.9,3.2078]
[1762483014390,0.48795,3321.8,3321.7,0.00826967]
[1762483014589,0.71945,3321.8,3321.7,0.00826967]
[1762483014785,0.48795,3321.8,3321.7,0.00826967]
[1762483015088,3.2078,3322.0,3321.7,0.00826967]
[1762483015293,0.48789,3322.2,3321.9,3.2078]
[1762483015585,3.2078,3322.7,3322.2,0.145]
[1762483015984,0.48785,3322.5,3322.2,0.145]
[1762483016692,0.48787,3322.4,3322.2,0.145]
[1762483016886,0.48789,3322.2,3321.9,3.69572]
[1762483017189,0.48791,3322.1,3321.7,0.00826967]
[1762483017491,3.2078,3322.3,3321.8,0.48794]
[1762483017492,0.48792,3322.0,3321.8,0.48794]
[1762483017992,0.48794,3321.9,3321.7,0.00826967]
[1762483018587,0.48794,3321.9,3321.7,0.49622967]
[1762483018983,3.2078,3322.8,3321.8,0.2522]
[1762483019196,0.48792,3322.0,3321.9,0.2522]
[1762483019589,3.2078,3322.3,3321.7,0.00826967]
[1762483020584,3.2078,3322.3,3321.7,0.49621967]
[1762483020794,0.48782,3322.7,3322.2,0.3972]
[1762483020994,0.48786,3322.4,3322.2,0.3972]
[1762483021290,0.48786,3322.4,3322.2,0.88508]
[1762483021495,0.48786,3322.4,3322.2,0.3972]
[1762483021996,0.4879,3322.2,3322.0,3.2078]
[1762483022194,0.2315,3322.1,3322.0,3.2078]
[1762483022391,0.2315,3322.1,3319.8,5.72241555]
[1762483022392,0.48814,3320.5,3320.3,3.2078]
[1762483022788,3.2078,3321.0,3320.3,3.2078]
[1762483022995,0.48814,3320.5,3320.3,3.2078]
[1762483023293,0.00331891,3320.5,3320.3,3.69950362]
[1762483023893,0.49146891,3320.5,3320.3,0.00354362]
[1762483024088,0.2315,3320.4,3320.3,0.00354362]
[1762483024591,0.2395,3320.2,3320.1,0.00451746]
[1762483024792,0.72779,3319.5,3319.4,3.2078]
[1762483025496,0.72779,3319.5,3319.0,3.2078]
[1762483025691,3.2078,3319.8,3319.0,3.21021494]
[1762483025892,0.00331891,3320.5,3319.7,0.2396]
[1762483025893,0.48822,3320.0,3319.7,0.2396]
[1762483026195,0.2395,3319.8,3319.0,3.21021494]
[1762483026501,3.2078,3320.0,3319.0,3.21021494]
[1762483027190,0.48822,3320.0,3319.7,3.2078]
[1762483027596,0.48822,3320.0,3319.7,3.69605]
[1762483027998,3.2078,3320.3,3319.7,3.2078]
[1762483028898,0.00331891,3320.5,3320.4,0.2396]
[1762483029302,0.48805,3321.1,3320.8,0.1479]
[1762483029501,3.2078,3321.6,3320.8,3.3557]
[1762483029701,0.48805,3321.1,3320.8,3.3557]
[1762483029998,3.2078,3321.6,3320.8,3.84379]
[1762483030402,3.2078,3321.6,3320.9,0.00451746]
[1762483030403,0.48805,3321.1,3320.9,0.00451746]
[1762483030704,0.00451746,3321.5,3320.9,0.00451746]
[1762483031204,0.48804,3321.2,3321.0,0.48806]
[1762483031394,0.00451746,3321.5,3320.9,0.00451746]
[1762483031590,0.00451746,3321.5,3321.2,3.2078]
[1762483031796,0.00451746,3321.5,3321.3,0.48801]
[1762483034104,0.49250746,3321.5,3321.2,3.2078]
[1762483034301,0.49251746,3321.5,3321.3,0.48802]
[1762483034502,0.00451746,3321.5,3321.3,0.48802]
[1762483034798,0.49251746,3321.5,3321.3,0.48802]
[1762483035005,0.49251746,3321.5,3321.4,0.2396]
[1762483035202,0.49251746,3321.5,3321.4,0.24202082]
[1762483035404,0.00451746,3321.5,3321.4,0.24202082]
[1762483037200,0.24401746,3321.5,3321.4,0.00242082]
[1762483037400,0.48806,3321.0,3320.9,0.00451746]
[1762483037600,0.72756,3321.0,3320.9,0.00451746]
[1762483038196,3.2078,3321.2,3320.9,0.00451746]
[1762483038403,0.48802,3321.4,3321.2,0.48803]
[1762483038606,0.00451746,3321.5,3321.4,0.2396]
[1762483039205,0.00451746,3321.5,3321.4,0.48801]
[1762483039401,0.00451746,3321.5,3321.4,0.72761]
[1762483039601,0.00451746,3321.5,3321.4,0.2396]
[1762483040012,0.49251746,3321.5,3321.3,3.2078]
[1762483041204,0.48806,3321.0,3320.9,0.00809768]
[1762483042808,0.72756,3321.0,3320.9,0.00809768]
[1762483044005,3.93536,3321.0,3320.9,0.00809768]
[1762483044310,0.48821,3320.0,3319.9,3.2078]
[1762483044502,0.2395,3319.3,3319.2,3.2078]
[1762483044703,0.48829,3319.5,3319.2,3.2078]
[1762483044907,3.69602,3320.0,3319.2,3.2078]
[1762483045105,3.2078,3320.0,3319.4,0.1479]
[1762483045411,0.49273746,3320.0,3319.6,3.2078]
[1762483045710,0.00451746,3320.0,3319.8,0.48823]
[1762483045904,0.00451746,3320.0,3319.6,3.2078]
[1762483045905,0.48803,3321.3,3320.1,0.1479]
[1762483046109,3.21031098,3321.6,3321.0,0.48806]
[1762483046317,0.488,3321.5,3321.2,0.48803]
[1762483046616,0.00251098,3321.6,3321.2,0.48803]
[1762483046919,0.48801,3321.4,3321.1,3.70036746]
[1762483047105,0.49049098,3321.6,3321.1,3.21231746]
[1762483047513,0.00251098,3321.6,3321.1,3.21231746]
[1762483047702,0.48802,3321.4,3321.2,0.48803]
[1762483048116,0.00251098,3321.6,3321.1,3.21231746]
[1762483048321,0.48799,3321.5,3321.1,3.21231746]
[1762483048509,0.00251098,3321.6,3321.4,0.488]
[1762483049009,0.49049098,3321.6,3321.2,0.48803]
[1762483049211,0.00251098,3321.6,3321.2,0.48803]
[1762483049411,0.488,3321.5,3321.2,0.48803]
[1762483050713,0.48803,3321.3,3321.1,3.21231746]
[1762483051310,0.00251098,3321.6,3321.1,3.21231746]
[1762483051509,0.488,3321.5,3321.1,3.21231746]
[1762483051710,0.48803,3321.3,3321.1,3.21231746]
[1762483051922,0.48803,3321.3,3321.1,3.70036746]
[1762483052217,0.48803,3321.3,3321.1,3.21231746]
[1762483053215,0.2395,3321.2,3321.1,0.00451746]
[1762483053411,3.21031098,3321.6,3321.1,0.00451746]
[1762483053412,0.488,3321.5,3321.1,3.21231746]
[1762483053617,3.21031098,3321.6,3321.1,3.21231746]
[1762483053618,0.48801,3321.4,3321.1,3.70036746]
[1762483053916,0.48803,3321.3,3321.1,3.70036746]
[1762483054220,0.48801,3321.4,3321.3,0.72761]
[1762483054718,0.00251098,3321.6,3321.1,3.21231746]
[1762483054719,0.48804,3321.2,3321.1,3.21231746]
[1762483055422,0.00251098,3321.6,3321.1,3.70036746]
[1762483056215,0.00251098,3321.6,3321.1,3.21231746]
[1762483056420,0.00251098,3321.6,3321.3,0.48802]
[1762483057417,0.48801,3321.4,3321.1,3.21231746]
[1762483057718,0.48804,3321.2,3321.1,3.21231746]
[1762483058216,0.00251098,3321.6,3321.3,0.2309]
[1762483058421,0.00251098,3321.6,3321.5,0.3755]
[1762483059723,0.49049098,3321.6,3321.5,0.3755]
[1762483060323,0.00251098,3321.6,3321.1,3.21231746]
[1762483060518,0.48804,3321.2,3321.1,3.21231746]
[1762483061517,0.00251098,3321.6,3321.5,0.71889]
[1762483061711,0.00251098,3321.6,3321.5,3.4387]
[1762483061912,0.49049098,3321.6,3321.5,3.4387]
[1762483062723,0.00251098,3321.6,3321.5,3.92669]
[1762483064430,0.49049098,3321.6,3321.5,3.92669]
[1762483066620,0.00251098,3321.6,3321.5,3.92669]
[1762483066928,0.00251098,3321.6,3321.5,5.56306908]
[1762483067124,0.00251098,3321.6,3321.5,6.05105908]
[1762483067320,0.72339098,3321.6,3321.5,3.2078]
[1762483068224,0.49049098,3321.6,3321.5,3.2078]
[1762483068423,0.49049098,3321.6,3321.5,3.4387]
[1762483068424,0.00251098,3321.6,3321.5,3.4387]
[1762483068932,3.2078,3322.9,3322.8,0.3755]
[1762483069221,3.2078,3324.1,3323.4,0.6323]
[1762483069416,3.2078,3324.5,3323.8,3.2078]
[1762483069623,0.48763,3324.0,3323.8,3.2078]
[1762483069922,0.00306337,3324.0,3323.8,3.21084397]
[1762483070325,0.00306337,3324.0,3323.9,0.2309]
[1762483070926,3.2078,3324.9,3324.3,0.63217]
[1762483071124,3.2078,3325.3,3324.3,3.3524]
[1762483071425,0.48756,3324.5,3324.3,3.2078]
[1762483071826,0.49002168,3324.5,3324.3,3.2078]
[1762483072528,0.48764,3323.9,3323.8,0.00304397]
[1762483074618,0.72054,3323.9,3323.8,0.00304397]
[1762483074823,0.48763,3324.0,3323.8,0.00304397]
[1762483075023,0.2329,3323.7,3323.6,0.00451746]
[1762483075229,3.2078,3323.7,3322.9,3.2078]
[1762483075533,0.48777,3323.0,3322.9,3.2078]
[1762483076123,0.48777,3323.0,3322.9,3.21063937]
[1762483076319,0.72067,3323.0,3322.6,3.2078]
[1762483076526,3.2078,3322.8,3321.7,0.48796]
[1762483076824,0.48796,3321.8,3321.4,3.2078]
[1762483077020,0.48796,3321.8,3321.5,0.48798]
[1762483077222,0.48788,3322.3,3321.9,0.2309]
[1762483077425,0.00328582,3322.3,3321.9,0.23451763]
[1762483078427,0.00328582,3322.3,3322.2,0.3755]
[1762483079032,0.00328582,3322.3,3321.9,0.00361763]
[1762483079330,0.49116582,3322.3,3322.2,0.3755]
[1762483080030,0.49116582,3322.3,3321.9,0.49154763]
[1762483080225,0.00328582,3322.3,3322.2,3.5833]
[1762483080527,0.00328582,3322.3,3322.2,0.3755]
[1762483080924,0.00328582,3322.3,3322.2,3.5833]
[1762483081127,0.00451746,3322.4,3322.3,0.2309]
[1762483081430,0.49237746,3322.4,3322.3,0.2309]
[1762483082134,0.48791,3322.1,3321.9,0.00361763]
[1762483082734,0.2329,3322.0,3321.9,0.00361763]
[1762483083126,0.48791,3322.1,3321.9,0.00361763]
[1762483083432,0.48775,3323.2,3323.1,0.2309]
[1762483083633,3.2078,3323.8,3323.1,0.2309]
[1762483083834,3.2078,3323.8,3323.1,0.71865]
[1762483084132,0.48774,3323.3,3323.2,0.2309]
[1762483084329,0.00333861,3323.3,3323.2,0.71864]
[1762483084544,0.00333861,3323.3,3323.2,0.2309]
[1762483086527,0.48777,3323.0,3322.8,3.2078]
[1762483086729,0.48792,3322.1,3321.8,0.00451746]
[1762483087031,0.48789,3322.2,3321.8,0.00451746]
[1762483087237,0.48791,3322.1,3321.8,0.00451746]
[1762483088036,0.48789,3322.2,3322.1,0.2408]
[1762483088938,0.48792,3322.0,3321.8,0.00451746]
[1762483089629,3.69572,3322.0,3321.8,0.00451746]
[1762483090133,3.2078,3322.6,3322.0,0.48792]
[1762483090337,0.4879,3322.2,3322.1,0.2408]
[1762483090545,0.48792,3322.0,3321.8,0.00451746]
[1762483091136,0.72222,3322.0,3321.8,0.00451746]
[1762483092038,0.72222,3322.0,3321.9,3.80661763]
[1762483092636,3.2078,3322.1,3321.9,3.80661763]
[1762483093136,3.2078,3322.1,3322.0,3.803]
[1762483093137,3.93,3322.1,3322.0,3.803]
[1762483093433,0.48786,3322.4,3322.2,0.48789]
[1762483093739,0.48786,3322.4,3322.2,0.64009]
[1762483094036,0.48786,3322.4,3322.2,0.1522]
[1762483094643,3.69565,3322.5,3322.3,0.48787]
[1762483094840,0.48787,3322.3,3322.2,0.1522]
[1762483095037,3.2078,3322.5,3322.0,3.803]
[1762483095536,0.48786,3322.4,3322.3,0.48787]
[1762483095732,0.48786,3322.4,3322.2,0.64009]
[1762483096140,3.2078,3322.5,3322.4,0.48786]
[1762483096342,0.48784,3322.5,3322.4,0.2408]
[1762483096636,3.2078,3323.0,3322.5,0.48784]
[1762483096840,3.2078,3323.0,3322.9,0.72859]
[1762483097232,3.2078,3323.5,3323.3,0.72852]
[1762483097432,0.48773,3323.3,3323.1,0.48774]
[1762483098231,0.48776,3323.1,3323.0,0.2408]
[1762483098433,0.48778,3323.0,3322.8,0.64]
[1762483098630,0.48783,3322.7,3322.5,3.803]
[1762483098835,0.48783,3322.7,3322.4,3.69565]
[1762483099039,0.48784,3322.5,3322.4,3.2078]
[1762483099336,0.48789,3322.2,3322.0,3.2078]
[1762483100643,0.48787,3322.4,3322.2,0.48789]
[1762483101043,3.2078,3323.1,3322.0,3.2078]
[1762483101234,0.48789,3322.2,3322.0,3.2078]
[1762483101734,0.48804,3321.2,3321.1,3.2078]
[1762483102238,0.4881,3320.8,3320.7,3.2078]
[1762483102736,3.2078,3321.8,3320.7,3.2078]
[1762483102737,0.48807,3321.0,3320.8,0.48809]
[1762483103036,0.49177529,3321.0,3320.8,0.48809]
[1762483103240,0.48809,3320.8,3320.7,3.21109899]
[1762483103440,0.00370529,3321.0,3320.7,3.69920899]
[1762483103838,0.00370529,3321.0,3320.9,0.2408]
[1762483104044,0.00451746,3321.1,3321.0,0.72886]
[1762483104639,0.00451746,3321.1,3321.0,0.48806]
[1762483104944,0.00451746,3321.1,3320.7,3.21109899]
[1762483104945,0.48808,3320.9,3320.7,3.21109899]
[1762483105132,0.48808,3320.9,3320.7,3.69919899]
[1762483105547,0.00778216,3321.1,3320.7,3.21109899]
[1762483105847,0.00778216,3321.1,3321.0,0.393]
[1762483107352,0.48801,3321.4,3321.0,2.75401142]
[1762483107539,3.2078,3321.7,3321.0,0.1522]
[1762483107847,3.2078,3321.7,3321.1,0.48805]
[1762483108039,3.2078,3321.7,3321.2,0.48803]
[1762483108240,0.00215758,3321.7,3321.2,0.48803]
[1762483108440,0.48803,3321.3,3321.0,0.1522]
[1762483108642,0.48804,3321.2,3320.9,3.69588]
[1762483108844,0.48806,3321.1,3320.9,3.2078]
[1762483109345,0.48806,3321.1,3320.9,3.69588]
[1762483109648,0.48804,3321.2,3321.1,0.48804]
[1762483109944,0.00215758,3321.7,3321.1,0.48804]
[1762483110142,0.48806,3321.1,3320.9,3.2078]
[1762483110452,0.48806,3321.1,3320.9,3.69588]
[1762483111146,0.48806,3321.1,3320.9,3.2078]
[1762483111650,0.48806,3321.1,3320.9,3.69588]
[1762483111842,3.2078,3321.6,3321.0,0.1522]
[1762483112042,3.2078,3321.6,3320.9,3.2078]
[1762483112043,0.48806,3321.0,3320.9,3.2078]
[1762483113148,0.72236,3321.0,3320.9,3.2078]
[1762483115444,0.00215758,3321.7,3320.9,3.2078]
[1762483115644,0.48805,3321.1,3321.0,0.88706]
[1762483118248,0.00215758,3321.7,3321.0,0.146]
[1762483118550,0.48801,3321.4,3321.3,3.2078]
[1762483119349,0.48805,3321.1,3321.0,0.146]
[1762483119852,0.48805,3321.1,3321.0,0.63407]
[1762483120249,0.48805,3321.1,3321.0,3.803]
[1762483121054,0.48805,3321.1,3321.0,3.9506]
[1762483121754,0.48805,3321.1,3321.0,3.803]
[1762483122548,0.73719,3320.8,3320.7,0.00329899]
[1762483123145,0.73724,3320.5,3320.4,0.00451746]
[1762483123355,0.48814,3320.5,3320.4,0.00451746]
[1762483123649,0.48814,3320.5,3320.4,0.15211746]
[1762483124050,0.48814,3320.5,3320.4,0.00451746]
[1762483124258,0.48814,3320.5,3320.4,0.00706625]
[1762483125356,0.73724,3320.5,3320.4,0.00706625]
[1762483125962,0.73731,3320.0,3319.9,3.2078]
[1762483126252,0.48827,3319.6,3319.5,3.2078]
[1762483126957,0.48827,3319.6,3319.5,3.21057631]
[1762483128845,0.48827,3319.6,3319.5,3.69886631]
[1762483129255,0.48827,3319.6,3319.5,3.21057631]
[1762483130957,0.48827,3319.6,3319.5,4.07796631]
[1762483131256,0.48827,3319.6,3319.5,3.58967631]
[1762483131757,0.00451746,3319.9,3319.8,0.2315]
[1762483132059,3.2078,3320.7,3320.5,0.3791]
[1762483132253,0.48812,3320.6,3320.5,0.3791]
[1762483133355,3.2078,3320.7,3320.5,0.3791]
[1762483134059,0.48812,3320.6,3320.5,0.3791]
[1762483134565,0.48815,3320.4,3320.3,0.48817]
[1762483134961,0.48815,3320.4,3320.3,0.71967]
[1762483136369,0.48815,3320.4,3320.3,0.2315]
[1762483137559,0.00451746,3320.9,3320.5,0.3791]
[1762483138169,0.48812,3320.6,3320.5,0.3791]
[1762483139462,0.00451746,3320.9,3320.5,0.86723]
[1762483140161,0.00451746,3320.9,3320.8,0.71959]
[1762483140462,0.00215758,3321.7,3321.6,0.2315]
[1762483140861,3.2078,3322.7,3322.3,0.2315]
[1762483141165,0.48785,3322.5,3322.0,0.1476]
[1762483141358,0.49235746,3322.6,3322.5,0.1476]
[1762483141557,0.49235746,3322.6,3322.5,0.3791]
[1762483141758,0.00799633,3322.6,3322.0,0.1476]
[1762483141963,0.4879,3322.2,3322.0,0.1476]
[1762483142165,0.4879,3322.2,3322.0,0.15132656]
[1762483142469,0.2491,3322.1,3322.0,0.00372656]
[1762483143467,0.4879,3322.2,3322.0,0.00372656]
[1762483144067,0.2491,3322.1,3322.0,0.00372656]
[1762483146163,0.4879,3322.2,3322.0,0.14222656]
[1762483146365,0.00799633,3322.6,3322.2,0.241]
[1762483146568,0.48784,3322.5,3322.3,0.241]
[1762483147273,0.4879,3322.1,3322.0,0.38322656]
[1762483149370,0.00799633,3322.6,3322.1,0.241]
[1762483149670,0.48785,3322.5,3322.4,0.72885]
[1762483149975,0.00799633,3322.6,3322.5,0.241]
[1762483150865,0.00799633,3322.6,3322.5,0.3795]
[1762483151377,0.2517,3322.4,3322.3,3.2078]
[1762483151967,0.48787,3322.3,3322.1,9.7429]
[1762483152370,0.48787,3322.3,3322.1,9.255]